fUSD/lending_fUSD_20240925
["ID","MTS","AMOUNT","RATE_DAILY","PERIOD"]
[339091545,1727238640206,-10755.02,0.00011478,2]
[339091546,1727238640215,-3984.31984695,0.00011478,2]
[339091547,1727238640228,-1102.36015305,0.00011478,2]
[339091548,1727238640237,-250.0,0.00011633,2]
[339091549,1727238640247,-200.0,0.00011682,2]
[339091550,1727238640256,-218.14,0.0001174,2]
[339091551,1727238640265,-250.0,0.00011744,2]
[339091552,1727238640274,-986.52,0.00011753,2]
[339091553,1727238640284,-173.65,0.00011755,2]
[339091554,1727238640293,-907.48,0.00011816,2]
[339091555,1727238640302,-840.0,0.00011848,2]
[339091556,1727238640311,-283.2,0.00011915,2]
[339091557,1727238640320,-753.72,0.00011941,2]
[339091558,1727238640329,-422.95,0.00011941,2]
[339091559,1727238640338,-753.72,0.00011941,2]
[339091560,1727238640347,-422.95,0.00011941,2]
[339091561,1727238640356,-422.95,0.00011941,2]
[339091562,1727238640365,-753.72,0.00011941,2]
[339091563,1727238640374,-753.72,0.00011941,2]
[339091564,1727238640384,-422.95,0.00011941,2]
[339091566,1727238640394,-750.2,0.00011941,2]
[339091568,1727238640403,-809.0906091,0.00012,2]
[339091570,1727238640412,-1595.049802,0.00012389,2]
[339091571,1727238640421,-428.36,0.00012438,2]
[339091572,1727238640432,-150.0,0.00012438,2]
[339091573,1727238640441,-150.0,0.00012438,2]
[339091574,1727238640451,-256.83,0.00012438,2]
[339091575,1727238640661,-150.0,0.00012438,2]
[339091576,1727238640671,-428.36,0.00012438,2]
[339091577,1727238640681,-150.0,0.00012438,2]
[339091578,1727238640691,-150.0,0.00012438,2]
[339091579,1727238640700,-428.36,0.00012438,2]
[339091580,1727238640710,-150.0,0.00012438,2]
[339091581,1727238640719,-150.0,0.00012438,2]
[339091582,1727238640729,-152.15,0.00012438,2]
[339091583,1727238640739,-404.45,0.00012438,2]
[339091584,1727238640748,-152.51,0.00012438,2]
[339091585,1727238640758,-4042.98933801,0.000125,2]
[339091586,1727238640768,-3838.0246,0.000125,2]
[339091587,1727238640778,-1000.0,0.000125,2]
[339091588,1727238640787,-279.79025163,0.000125,2]
[339091589,1727238640797,-175.842,0.00012524,2]
[339091590,1727238640806,-1595.049802,0.00012544,2]
[339091591,1727238640816,-185.97,0.00012545,2]
[339091592,1727238640826,-17993.57143297,0.000126,2]
[339091596,1727238643182,-20719.58556703,0.000126,2]
[339091597,1727238643193,-160.78836512,0.000126,2]
[339091598,1727238643203,-933.72,0.000126,2]
[339091599,1727238643211,-150.62,0.000126,2]
[339091600,1727238643221,-150.0,0.000126,2]
[339091601,1727238643230,-150.0,0.000126,2]
[339091602,1727238643239,-428.36,0.000126,2]
[339091603,1727238643248,-358.17,0.000126,2]
[339091604,1727238643258,-150.0,0.000126,2]
[339091605,1727238643267,-428.36,0.000126,2]
[339091606,1727238643276,-358.17,0.000126,2]
[339091607,1727238643286,-150.0,0.000126,2]
[339091608,1727238643295,-150.0,0.000126,2]
[339091609,1727238643304,-150.0,0.000126,2]
[339091610,1727238643314,-170.47842334,0.000126,2]
[339091611,1727238643323,-172.78963925,0.000126,2]
[339091612,1727238643332,-15549.92363667,0.000126,2]
[339091613,1727238643341,-207.94916521,0.000126,2]
[339091614,1727238643351,-208.44,0.000126,2]
[339091615,1727238643359,-151.36216885,0.000126,2]
[339091616,1727238643368,-151.36216885,0.000126,2]
[339091617,1727238643378,-151.36216885,0.000126,2]
[339091618,1727238643387,-151.36216885,0.000126,2]
[339091619,1727238643396,-151.36216885,0.000126,2]
[339091621,1727238643406,-151.36216885,0.000126,2]
[339091623,1727238643415,-151.36216885,0.000126,2]
[339091624,1727238643425,-151.36216885,0.000126,2]
[339091625,1727238643437,-151.36216885,0.000126,2]
[339091626,1727238643447,-151.36216885,0.000126,2]
[339091627,1727238643456,-151.36216885,0.000126,2]
[339091628,1727238643465,-151.36216885,0.000126,2]
[339091629,1727238643474,-151.36216885,0.000126,2]
[339091630,1727238643484,-151.36216885,0.000126,2]
[339091631,1727238643494,-151.36216885,0.000126,2]
[339091632,1727238643503,-151.36216885,0.000126,2]
[339091633,1727238643512,-151.36216885,0.000126,2]
[339091634,1727238643522,-151.36216885,0.000126,2]
[339091635,1727238643531,-151.86,0.000126,2]
[339091636,1727238643541,-156.81750337,0.000126,2]
[339091637,1727238643551,-156.81750337,0.000126,2]
[339091638,1727238643560,-156.81750337,0.000126,2]
[339091639,1727238643570,-156.81750337,0.000126,2]
[339091640,1727238643579,-156.81750337,0.000126,2]
[339091641,1727238643589,-156.81750337,0.000126,2]
[339091643,1727238643598,-156.81750337,0.000126,2]
[339091645,1727238643607,-156.81750337,0.000126,2]
[339091647,1727238643617,-156.81750337,0.000126,2]
[339091648,1727238643626,-156.81750337,0.000126,2]
[339091649,1727238643636,-156.81750337,0.000126,2]
[339091650,1727238643646,-156.81750337,0.000126,2]
[339091652,1727238643655,-156.81750337,0.000126,2]
[339091654,1727238643665,-156.81750337,0.000126,2]
[339091656,1727238643675,-156.81750337,0.000126,2]
[339091657,1727238643686,-156.81750337,0.000126,2]
[339091658,1727238643696,-156.81750337,0.000126,2]
[339091659,1727238643705,-156.81750337,0.000126,2]
[339091660,1727238643714,-156.81750337,0.000126,2]
[339091661,1727238643724,-157.31,0.000126,2]
[339091662,1727238643733,-198.59310146,0.000126,2]
[339091663,1727238643743,-769.85454243,0.000126,2]
[339091664,1727238643753,-500.71266641,0.00012673,2]
[339091665,1727238643762,-163.40106441,0.00012673,2]
[339091666,1727238643771,-500.0,0.00012673,2]
[339091667,1727238643781,-500.0,0.00012673,2]
[339091668,1727238643790,-164.47,0.0001269,2]
[339091669,1727238643800,-157.97352863,0.0001269,2]
[339091670,1727238643810,-1080.0,0.00012694,2]
[339091671,1727238643819,-1000.0,0.00012699,2]
[339091672,1727238643828,-1595.049802,0.00012699,2]
[339091673,1727238643838,-18397.67327715,0.000127,2]
[339091684,1727238646101,-2049.20000046,0.000127,2]
[339091695,1727238646207,-48752.13742566,0.000127,2]
[339091697,1727238646219,-12009.06741198,0.000127,2]
[339091698,1727238646262,-376.87925389,0.000127,2]
[339091699,1727238646274,-15825.08043955,0.000127,2]
[339091700,1727238646283,-28250.19300555,0.000127,2]
[339091701,1727238646323,-26750.99999943,0.000127,2]
[339091704,1727238659515,281.68,9.994e-05,2]
[339091705,1727238666282,500.0,0.00022,120]
[339091706,1727238666318,500.0,0.00022,120]
[339091707,1727238666900,500.0,0.00022,120]
[339091708,1727238667365,500.0,0.00022,120]
[339091709,1727238667843,500.0,0.00022,120]
[339091710,1727238668473,500.0,0.00022,120]
[339091711,1727238668779,500.0,0.00022,120]
[339091712,1727238669261,500.0,0.00022,120]
[339091713,1727238669798,500.0,0.00022,120]
[339091714,1727238670118,186.73150195,0.00022,120]
[339091715,1727238706202,1050.0,0.00011,2]
[339091716,1727238756976,1374.4368,0.00011039,2]
[339091717,1727238802310,500.0,0.00010959,2]
[339091718,1727238808934,500.0,0.00010959,2]
[339091719,1727238812875,500.0,0.0001095,2]
[339091720,1727238813345,500.0,0.00010951,2]
[339091721,1727238813762,500.0,0.00010951,2]
[339091722,1727238818160,200.0,0.00010959,2]
[339091723,1727238818671,200.0,0.00010959,2]
[339091724,1727238819151,200.0,0.00020607,120]
[339091725,1727238819660,200.0,0.00020985,120]
[339091726,1727238820102,200.0,0.00021363,120]
[339091727,1727238820574,200.0,0.00021741,120]
[339091728,1727238861190,2062.13185258,0.00022,120]
[339091729,1727238909050,179.93,9.38e-05,2]
[339091730,1727239120766,155.06,0.00010959,2]
[339091731,1727239265871,-2163.51094654,0.00011465,2]
[339091732,1727239265894,-200.0,0.00011565,2]
[339091733,1727239265916,-1170.07,0.00011565,2]
[339091734,1727239265940,-295.32,0.00011607,2]
[339091735,1727239265963,-904.01,0.00011708,2]
[339091736,1727239265985,-250.0,0.00011722,2]
[339091737,1727239266008,-10000.0,0.00011723,2]
[339091738,1727239266031,-256.57,0.00011732,2]
[339091739,1727239266053,-166.68,0.00011815,2]
[339091740,1727239266081,-255.0,0.00011824,2]
[339091741,1727239266110,-1000.0,0.00011824,2]
[339091742,1727239266132,-250.0,0.00011825,2]
[339091743,1727239266156,-250.0,0.00011866,2]
[339091744,1727239266179,-281.68,0.00012258,2]
[339091745,1727239266203,-235.1808972,0.00012303,2]
[339091746,1727239266224,-421.94785814,0.00012341,2]
[339091747,1727239266247,-1113.64,0.00012342,4]
[339091748,1727239266269,-499.99,0.00012342,2]
[339091749,1727239266292,-713.273235,0.00012389,2]
[339091750,1727239266316,-713.273235,0.00012544,2]
[339091751,1727239266346,-1828.621225,0.0001258,2]
[339091752,1727239266369,-1642.038483,0.000126,2]
[339091753,1727239266393,-2500.0,0.000126,2]
[339091754,1727239266415,-188.3834412,0.000126,2]
[339091755,1727239266440,-150.0,0.00012627,2]
[339091756,1727239266464,-160.62811775,0.00012673,2]
[339091757,1727239266486,-500.0,0.00012673,2]
[339091758,1727239266951,500.0,0.00022,120]
[339091759,1727239271010,500.0,0.00011871,2]
[339091760,1727239274819,151.53,0.000123,2]
[339091761,1727239292798,236.99092606,0.000126,2]
[339091762,1727239298964,250.0,0.00011864,2]
[339091763,1727239308958,516.6396,0.000126,2]
[339091764,1727239322541,150.0,0.00012643,2]
[339091765,1727239347485,4427.63,0.00011957,2]
[339091766,1727239350170,285.96,9.944e-05,2]
[339091767,1727239350382,285.96,0.00012208,2]
[339091768,1727239415708,500.0,0.00012109,2]
[339091769,1727239416145,500.0,0.0001211,2]
[339091770,1727239416694,500.0,0.0001211,2]
[339091771,1727239419771,200.0,0.0001211,2]
[339091772,1727239423510,200.0,0.00020551,120]
[339091773,1727239424048,203.01192,0.00021051,120]
[339091774,1727239488667,1000.0,0.00011862,2]
[339091775,1727239498102,4192.61435262,0.000126,2]
[339091776,1727239502595,150.0,0.00011416,2]
[339091777,1727239502936,150.0,0.00011447,2]
[339091778,1727239503272,150.0,0.00011478,2]
[339091779,1727239503614,150.0,0.00011509,2]
[339091780,1727239503960,150.0,0.0001154,2]
[339091781,1727239504296,150.0,0.00011571,2]
[339091782,1727239504678,150.0,0.00011602,2]
[339091783,1727239505465,150.0,0.00011633,2]
[339091784,1727239505800,150.0,0.00011664,2]
[339091785,1727239506170,150.0,0.00011695,2]
[339091786,1727239506576,150.0,0.00011726,2]
[339091787,1727239507158,150.0,0.00011757,2]
[339091788,1727239508236,150.0,0.00011788,2]
[339091789,1727239508567,150.0,0.00011819,2]
[339091790,1727239508902,150.0,0.0001185,2]
[339091791,1727239509225,150.0,0.00011881,2]
[339091792,1727239509256,150.0,0.00012658,2]
[339091793,1727239509533,150.0,0.00011911,2]
[339091794,1727239509883,150.0,0.00011942,2]
[339091795,1727239510218,150.0,0.00011973,2]
[339091796,1727239510565,150.0,0.00012004,2]
[339091797,1727239510903,150.0,0.00012035,2]
[339091798,1727239511426,150.0,0.00012066,2]
[339091799,1727239511599,150.0,0.00012097,2]
[339091800,1727239511918,150.0,0.00012128,2]
[339091801,1727239512232,150.0,0.00012159,2]
[339091802,1727239512575,150.0,0.0001219,2]
[339091803,1727239512919,150.0,0.00012221,2]
[339091804,1727239513265,150.0,0.00012252,2]
[339091805,1727239513579,150.0,0.00012283,2]
[339091806,1727239514348,150.0,0.00012314,2]
[339091807,1727239514678,150.0,0.00012345,2]
[339091808,1727239515017,150.0,0.00012376,2]
[339091809,1727239515314,150.0,0.00012406,2]
[339091810,1727239515665,150.0,0.00012437,2]
[339091811,1727239515968,150.0,0.00012468,2]
[339091812,1727239516301,150.0,0.00012499,2]
[339091813,1727239516743,150.0,0.0001253,2]
[339091814,1727239517066,150.0,0.00012561,2]
[339091815,1727239517392,150.0,0.00012592,2]
[339091816,1727239518079,150.0,0.00012623,2]
[339091817,1727239518414,150.0,0.00012654,2]
[339091818,1727239533169,2990.02584826,0.00012999,30]
[339091819,1727239642016,23900.0,0.00011849,2]
[339091820,1727239653240,256.57,0.00011848,2]
[339091821,1727239670139,193.95,0.00010959,2]
[339091822,1727239695305,8751.32681001,0.000125,10]
[339091828,1727239726337,174.51,0.00011869,2]
[339091829,1727239745640,219.74691207,0.000126,2]
[339091830,1727239745983,220.24,0.000126,2]
[339091833,1727239751993,154.10897589,0.000126,2]
[339091834,1727239752733,154.10897589,0.000126,2]
[339091835,1727239753217,154.10897589,0.000126,2]
[339091836,1727239753402,154.10897589,0.000126,2]
[339091837,1727239753724,154.10897589,0.000126,2]
[339091838,1727239754015,154.10897589,0.000126,2]
[339091839,1727239754319,154.10897589,0.000126,2]
[339091840,1727239754641,154.10897589,0.000126,2]
[339091841,1727239754953,154.10897589,0.000126,2]
[339091842,1727239755257,154.10897589,0.000126,2]
[339091843,1727239755559,154.10897589,0.000126,2]
[339091844,1727239755875,154.10897589,0.000126,2]
[339091845,1727239756187,154.10897589,0.000126,2]
[339091846,1727239756486,154.10897589,0.000126,2]
[339091847,1727239757143,154.10897589,0.000126,2]
[339091848,1727239757420,154.10897589,0.000126,2]
[339091849,1727239757716,154.10897589,0.000126,2]
[339091850,1727239758488,154.10897589,0.000126,2]
[339091851,1727239758783,154.10897589,0.000126,2]
[339091852,1727239759089,154.6,0.000126,2]
[339091853,1727239761483,250.0,0.00011869,2]
[339091854,1727239767689,170.68350773,0.000126,2]
[339091855,1727239768030,170.68350773,0.000126,2]
[339091856,1727239768377,170.68350773,0.000126,2]
[339091857,1727239768711,170.68350773,0.000126,2]
[339091858,1727239769030,170.68350773,0.000126,2]
[339091859,1727239769385,170.68350773,0.000126,2]
[339091860,1727239769702,170.68350773,0.000126,2]
[339091861,1727239770166,170.68350773,0.000126,2]
[339091862,1727239770310,170.68350773,0.000126,2]
[339091863,1727239770664,170.68350773,0.000126,2]
[339091864,1727239771008,170.68350773,0.000126,2]
[339091865,1727239771370,170.68350773,0.000126,2]
[339091866,1727239771703,170.68350773,0.000126,2]
[339091867,1727239772064,170.68350773,0.000126,2]
[339091868,1727239772371,170.68350773,0.000126,2]
[339091869,1727239772688,170.68350773,0.000126,2]
[339091870,1727239772987,170.68350773,0.000126,2]
[339091871,1727239773300,170.68350773,0.000126,2]
[339091872,1727239773586,170.68350773,0.000126,2]
[339091873,1727239773885,171.18,0.000126,2]
[339091877,1727239779906,1983.99,0.00022,120]
[339091881,1727239803399,159.23,0.00012672,2]
[339091882,1727239808594,698.27,0.00011869,2]
[339091883,1727239810468,20372.17677163,0.000126,2]
[339091903,1727239832499,-307.8334,0.000126,2]
[339091904,1727239832515,-600.0,0.000126,2]
[339091905,1727239832526,-900.0,0.000126,2]
[339092067,1727239840387,-587.82290893,0.000126,2]
[339092069,1727239840398,-300.0,0.00012681,2]
[339092071,1727239840408,-414.197,0.00012682,2]
[339092073,1727239840419,-104.19608107,0.00012682,2]
[339092088,1727239840545,-84.05391893,0.00012682,2]
[339092090,1727239840555,-270.66522426,0.00012685,2]
[339092092,1727239840564,-290.44662321,0.0001269,2]
[339092094,1727239840574,-162.95,0.0001269,2]
[339092096,1727239840584,-1649.4750684,0.00012697,2]
[339092098,1727239840596,-8917.68717468,0.00012698,2]
[339092100,1727239840611,-1689.12296374,0.00012698,2]
[339092118,1727239840766,-4678.81986158,0.00012698,2]
[339092120,1727239840775,-281.52828416,0.00012699,2]
[339092122,1727239840785,-225.16580985,0.00012699,2]
[339092124,1727239840796,-2808.43790836,0.00012699,2]
[339092126,1727239840806,-150.0,0.00012699,2]
[339092128,1727239840816,-713.273235,0.00012699,2]
[339092130,1727239840825,-150.99,0.00012699,2]
[339092132,1727239840834,-6978.29,0.00012699,2]
[339092134,1727239840844,-20268.99381262,0.000127,2]
[339092366,1727239843378,-501.17066642,0.00012699,2]
[339092368,1727239843387,-392.52625537,0.00012699,2]
[339092370,1727239843397,-500.0,0.00012699,2]
[339092372,1727239843406,-5021.43107821,0.000127,2]
[339092375,1727239843433,-10004.71031977,0.000127,2]
[339092383,1727239843491,-59865.71483351,0.000127,2]
[339092385,1727239843501,-381754.64285959,0.000127,2]
[339092676,1727239846311,-552.888,0.00012389,2]
[339093728,1727239867431,500.0,0.00022,120]
[339093729,1727239934463,286.19,9.589e-05,2]
[339093730,1727240002297,602.512649,0.00022,120]
[339093731,1727240005487,1067.059884,0.00022,120]
[339093732,1727240008523,401.521972,0.00022,120]
[339093733,1727240051177,327.43,9.831e-05,2]
[339093734,1727240270981,152.0,0.00015539,65]
[339093735,1727240271343,152.0,0.00015495,64]
[339093736,1727240271713,152.0,0.00015451,63]
[339093737,1727240272565,152.0,0.00015407,62]
[339093738,1727240272884,152.0,0.00015363,61]
[339093739,1727240273226,152.0,0.00015318,60]
[339093789,1727240467793,500.0,0.00022,120]
[339093790,1727240508553,1050.0,0.00011,2]
[339093791,1727240577806,344.05,9.821e-05,2]
[339093792,1727240651748,238.49,9.589e-05,2]
[339093807,1727241032351,-158.38,0.00011683,2]
[339093808,1727241032367,-341.62,0.00011683,2]
[339093809,1727241032376,-1074.43,0.00011697,2]
[339093810,1727241032385,-637.20173375,0.000117,2]
[339093811,1727241032397,-865.31617129,0.000117,2]
[339093812,1727241032408,-497.48209496,0.000117,2]
[339093813,1727241032419,-3189.51188407,0.00011718,2]
[339093814,1727241032431,-516.47725402,0.00011718,2]
[339093815,1727241032443,-445.64999998,0.00011718,2]
[339093816,1727241032454,-1535.5710467,0.00011718,2]
[339093817,1727241032465,-251.03914311,0.00011718,2]
[339093818,1727241032476,-999.26886133,0.00011718,2]
[339093819,1727241032487,-435.07824178,0.00011718,2]
[339093820,1727241032499,-537.31713837,0.00011718,2]
[339093821,1727241032510,-1936.87128191,0.00011718,2]
[339093822,1727241032524,-521.124372,0.00011718,2]
[339093823,1727241032536,-595.5625,0.00011718,2]
[339093824,1727241032547,-302.1,0.00011718,2]
[339093825,1727241032561,-502.90722895,0.00011718,2]
[339093826,1727241032580,-860.97154633,0.00011718,2]
[339093827,1727241032592,-2250.325,0.00011718,2]
[339093828,1727241032609,-5015.55103645,0.00011718,2]
[339093829,1727241032619,-424.67258154,0.00011718,2]
[339093830,1727241032630,-2072.75435249,0.00011718,2]
[339093831,1727241032641,-1390.89940899,0.00011718,2]
[339093832,1727241032652,-116.34712198,0.00011718,2]
[339093833,1727241032661,-236.25,0.00011718,2]
[339093834,1727241032670,-150.0,0.00011724,2]
[339093835,1727241032679,-185.97,0.00011725,2]
[339093836,1727241032688,-1000.0,0.00011728,2]
[339093837,1727241032697,-64.40249355,0.00011731,2]
[339093845,1727241037665,-185.59750645,0.00011731,2]
[339093846,1727241037675,-68.27249355,0.00012055,2]
[339093847,1727241037722,-170.21750645,0.00012055,2]
[339093848,1727241037733,-344.05,0.00012085,2]
[339093849,1727241037743,-149.586392,0.00012389,2]
[339093850,1727241037752,-5847.22286334,0.00012389,2]
[339093851,1727241037888,-15.48970266,0.00012389,2]
[339093852,1727241037898,-506.10989734,0.00012544,2]
[339093992,1727241039414,-196.36449466,0.00012544,2]
[339093994,1727241039424,-57.08048432,0.00012544,2]
[339093996,1727241039435,-556.86577081,0.00012544,2]
[339093999,1727241039448,-5248.76631087,0.00012544,2]
[339094000,1727241039458,-450.3048,0.00012575,2]
[339094002,1727241039467,-324.99262433,0.00012598,2]
[339094004,1727241039476,-150.43465662,0.000126,2]
[339094007,1727241039487,-937.70431672,0.000126,2]
[339094009,1727241039499,-622.3913,0.000126,2]
[339094011,1727241039511,-123.13328328,0.000126,2]
[339094013,1727241039520,-1000.0,0.000126,2]
[339094015,1727241039530,-607.71267672,0.000126,2]
[339094018,1727241039555,-737.51292328,0.000126,2]
[339094020,1727241039564,-2163.6029,0.000126,2]
[339094022,1727241039573,-789.7346,0.000126,2]
[339094024,1727241039583,-184.0898548,0.000126,2]
[339094026,1727241039592,-1498.65290996,0.000126,2]
[339094032,1727241039645,-600.0403232,0.000126,2]
[339094040,1727241039706,-7312.89457521,0.000126,2]
[339094326,1727241042548,-1639.88292671,0.000126,2]
[339094333,1727241042604,-1322.67837295,0.000126,2]
[339094335,1727241042616,-3563.9999998,0.000126,2]
[339094353,1727241042769,-2695.86061523,0.000126,2]
[339094632,1727241045413,-386.139,0.000126,2]
[339094651,1727241045576,-1597.71353979,0.000126,2]
[339094653,1727241045587,-9713.84781612,0.000126,2]
[339096282,1727241067022,500.0,0.00022,120]
[339096283,1727241122283,373.63,9.831e-05,2]
[339096284,1727241130926,2016.0,0.00022,120]
[339096285,1727241184929,238.47,9.589e-05,2]
[339096287,1727241210711,500.65,0.0001,2]
[339096288,1727241211076,200.0,0.00021841,120]
[339096291,1727241435428,2000.0,0.00022,120]
[339096292,1727241557789,200.0,0.00021,60]
[339096294,1727241668371,500.0,0.00022,120]
[339096300,1727241766811,155.29,0.00010959,2]
[339096301,1727241767694,200.0,0.00022,120]
[339096302,1727241868342,200.0,0.0002,120]
[339096303,1727241870031,383.59,9.698e-05,2]
[339096304,1727241894398,251.71,9.589e-05,2]
[339096305,1727241918813,7607.62091834,9e-05,2]
[339096306,1727241953573,5912.66655007,6.94e-05,2]
[339096308,1727242077055,220.79667406,0.0001,2]
[339096310,1727242112650,7058.9993376,0.00010998,2]
[339096335,1727242231602,-150.0,0.00011416,2]
[339096336,1727242231612,-250.0,0.00011535,2]
[339096337,1727242231621,-800.0,0.00011564,2]
[339096338,1727242231630,-3717.54734119,0.00011565,2]
[339096339,1727242231641,-3347.64236569,0.00011565,2]
[339096340,1727242231663,-199.95029312,0.00011565,2]
[339096341,1727242231674,-250.0,0.00011591,2]
[339096342,1727242231684,-174.51,0.00011642,2]
[339096343,1727242231694,-200.0,0.00011647,2]
[339096344,1727242231704,-383.59,0.00011962,2]
[339096345,1727242231714,-300.0,0.00011999,2]
[339096346,1727242231724,-450.0,0.00012,3]
[339096347,1727242231733,-450.0,0.00012,2]
[339096348,1727242231744,-350.0,0.00012,2]
[339096349,1727242231754,-809.0906092,0.00012,2]
[339096350,1727242231765,-499.99,0.00012,2]
[339096351,1727242231775,-697.69,0.00012,2]
[339096352,1727242231783,-150.0,0.00012051,2]
[339096353,1727242231793,-999.99,0.00012051,2]
[339096354,1727242231802,-150.99,0.00012051,2]
[339096355,1727242231810,-251.71,0.00012055,2]
[339096356,1727242231820,-322.37606901,0.00012061,2]
[339096357,1727242231829,-3538.57548688,0.00012463,7]
[339096358,1727242231840,-476.09994262,0.00012463,7]
[339096359,1727242231855,-5725.31554089,0.00012463,7]
[339096360,1727242231866,-2770.00902961,0.00012463,7]
[339096361,1727242231875,-366.09,0.000125,3]
[339096362,1727242231885,-3003.0,0.000125,3]
[339096363,1727242231894,-971.02644783,0.000125,2]
[339096364,1727242231905,-537.55625217,0.000125,2]
[339096365,1727242231914,-3962.2029,0.00012573,2]
[339096366,1727242231923,-150.0,0.00012581,2]
[339096367,1727242231932,-155.0,0.0001259,2]
[339096368,1727242231941,-169.90180674,0.0001259,2]
[339096369,1727242231950,-325.76792471,0.0001259,2]
[339096370,1727242231960,-1636.67636231,0.00012596,2]
[339096371,1727242231972,-3693.29101579,0.00012596,2]
[339096372,1727242231982,-1089.89289977,0.00012598,2]
[339096373,1727242238105,-253.414258,0.00012598,2]
[339096812,1727242242694,-9142.00157608,0.00012184,2]
[339097116,1727242245870,-545.776,0.00012184,2]
[339097117,1727242245886,-312.22242392,0.00012184,2]
[339097118,1727242245896,-246.585742,0.00012598,2]
[339097119,1727242245906,-549.19183408,0.00012599,2]
[339097121,1727242245918,-767.09016592,0.00012599,2]
[339097123,1727242245927,-2349.546953,0.00012599,2]
[339097125,1727242245937,-150.43465659,0.000126,2]
[339097127,1727242245946,-400.0,0.000126,4]
[339097129,1727242245955,-450.0,0.000126,2]
[339097131,1727242245964,-450.0,0.000126,2]
[339097133,1727242245974,-350.0,0.000126,3]
[339097135,1727242245984,-168.46558343,0.000126,2]
[339097136,1727242245993,-168.46558343,0.000126,2]
[339097139,1727242246003,-168.96,0.000126,2]
[339097141,1727242246012,-179.5557261,0.000126,2]
[339097143,1727242246021,-179.5557261,0.000126,2]
[339097145,1727242246031,-179.5557261,0.000126,2]
[339097146,1727242246040,-179.5557261,0.000126,2]
[339097148,1727242246049,-179.5557261,0.000126,2]
[339097150,1727242246058,-179.5557261,0.000126,2]
[339097152,1727242246068,-179.5557261,0.000126,2]
[339097154,1727242246078,-179.5557261,0.000126,2]
[339097156,1727242246087,-167.13127883,0.000126,2]
[339097159,1727242246103,-12.42444727,0.000126,2]
[339097161,1727242246112,-179.5557261,0.000126,2]
[339097163,1727242246122,-179.5557261,0.000126,2]
[339097165,1727242246131,-179.5557261,0.000126,2]
[339097167,1727242246140,-179.5557261,0.000126,2]
[339097169,1727242246150,-105.93764833,0.000126,2]
[339097212,1727242266966,500.0,0.00022,120]
[339097213,1727242310899,1050.0,0.00011,2]
[339097215,1727242381898,822.39,0.00011,2]
[339097216,1727242396760,184.25,0.00010959,2]
[339097217,1727242467123,211.96,9.589e-05,2]
[339097218,1727242505605,373.86,9.713e-05,2]
[339097219,1727242867437,475.49537758,0.00022,120]
[339097222,1727243034393,176.63,9.589e-05,2]
[339097239,1727243172145,355.16,9.593e-05,2]
[339097245,1727243216738,-1000.0,0.00012,12]
[339097259,1727243431849,-150.0,0.00011416,2]
[339097260,1727243431858,-150.0,0.00011416,2]